Workbook

Sheet ANRI
A1: =anriCalc!G2 -> 0.8864705882 | B1: The ANRI score is a measure of a jurisdiction’s attractiveness as a formation or incorporation center for legal persons or arrangements by non-residents.
A2: Input variables | B2: Rating | E2: Guidance | F2: Justification for Rating
A3: Size & Influence of Offshore Company Formation Business Sector | C3: 6 | D3: =IF(C3=2,0.1,IF(C3=3,0.3,IF(C3=4,0.5,IF(C3=5,0.7,IF(C3=6,0.9,0))))) -> 0.9 | E3: Evaluate the size and level of political influence of your jurisdiction’s "offshore" company formation business sector. "Offshore" refers to the provision of company formation services and other related professional services to non-resident clients in this context. At what scale do domestic service providers offer specialized company formation/administration services to non-resident individuals or foreign-registered legal entities? Consider factors such as: - Level of profitability of company formation business sector serving non-resident clients vis-à-vis domestic clients - Level of political influence of the company formation business sector - Existence of a well-developed network of skilled TCSPs with large foreign client base
A4: Advertising to Non-Residents | C4: 5 | D4: =IF(C4=3,0.3,IF(C4=4,0.7,IF(C4=5,0.9,0))) -> 0.9 | E4: To what degree are TCSPs and other service providers advertising your jurisdiction as an international company formation center that offers specialized company formation/administration services for non-residents? Review advertising examples that promote legal persons/arrangements created in your jurisdiction to non-resident clients. Consider online advertising and other channels and evaluate the level of advertising to non-residents. Consider the extent of company formation business that is generated from abroad through third party introductions to domestic company service providers. Not at all = sector is focused exclusively on domestic clients
A5: Political & Economic Stability | C5: 5 | D5: =IF(C5=2,0.1,IF(C5=3,0.3,IF(C5=4,0.5,IF(C5=5,0.7,IF(C5=6,0.9,0))))) -> 0.7 | E5: Assess the overall level of political and economic stability in your jurisdiction, using available sources and indexes, combined with expert opinion. Consider factors such as: - Government stability; non-violent transfers of power - Strength and stability of public institutions - Economic stability, stable currency - Absence of internal political violence or violent conflict (ethnic, religious, regional) - Absence of inter-state conflict
A6: Strength of Rule of Law | C6: 5 | D6: =IF(C6=2,0.1,IF(C6=3,0.3,IF(C6=4,0.5,IF(C6=5,0.7,IF(C6=6,0.9,0))))) -> 0.7 | E6: Assess the overall strength of rule of law in your country. Consider factors such as: - Existence of an efficient court system that enforces contractual and ownership rights - Existence of a well-developed infrastructure of experienced legal professionals - Existence of established legal and administrative frameworks to provide company formation/administration services to non-resident clients
A7: Legal Framework for Asset Protection | C7: 5 | D7: =IF(C7=2,0.1,IF(C7=3,0.3,IF(C7=4,0.5,IF(C7=5,0.7,IF(C7=6,0.9,0))))) -> 0.7 | E7: Assess the strength of your jurisdiction’s legal framework for asset protection. Consider factors such as: - Strength of private property laws - Offering special trusts or foundations that are advertised as offering a high level of asset protection to international clients - Weak civil forfeiture & confiscation statutes; or weak enforcement of them
A8: Perceived Corruption Levels | C8: 3 | D8: =IF(C8=2,0.9,IF(C8=3,0.7,IF(C8=4,0.5,IF(C8=5,0.3,IF(C8=6,0.1,0))))) -> 0.7 | E8: Assess the level of perceived corruption in your jurisdiction, considering both public corruption and private sector corruption. Please note that this indicator is about your country’s reputation and the perceptions of business executives, professional service providers, illicit actors, and the general public - it s not about actual corruption levels. You can utilize available sources and indexes on this issue for your assessment, such as Transparency International’s Corruption Perceptions Index (CPI). Consider factors, such as: - Corruption perceptions of your jurisdiction in regional comparisons - Corruption perceptions of your country in global comparisons
A9: Beneficial Ownership Transparency | C9: 2 | D9: =IF(C9=2,0.9,IF(C9=3,0.7,IF(C9=4,0.5,IF(C9=5,0.3,IF(C9=6,0.1,0))))) -> 0.9 | E9: Considering the information collecting in the mapping exercise, assess the overall level of beneficial ownership transparency of legal structures in your jurisdiction. Consider factors such as: - Is there a legal or regulatory requirement for the entity to disclose their beneficial owner(s) to any centralized registry (public or non-public)? - How effective is the system for collecting, recording, and updating beneficial ownership information? - How easy is it to keep beneficial ownership of legal structures secret using nominees/front men or bearer shares? - How rigorous is the enforcement of BO disclosure regulations?
A10: Tax Attractiveness | C10: 5 | D10: =IF(C10=2,0.1,IF(C10=3,0.3,IF(C10=4,0.5,IF(C10=5,0.7,IF(C10=6,0.9,0))))) -> 0.7 | E10: Assess the overall level of tax attractiveness of your jurisdiction, esp. in the ‘offshore’ sector serving non-residents. Consider factors such as: - Corporate tax rates on income earned abroad? - Corporate tax rates on income earned domestically? - Special tax rates or incentives to non-resident entities? - Tax transparency for business entities - Does the jurisdiction provide tax incentives to attract foreign individuals as tax residents? - Does the jurisdiction have sufficient tax administration capacity to prevent and prosecute tax evasion and collect unpaid tax? - Does the jurisdiction provide mechanisms to guarantee corporate tax disclosure? - Does the jurisdiction promote tax competition? - Does the jurisdiction provide preferential tax regimes? - Does the jurisdiction require financial institutions and freeport operators to monitor tax compliance of their clients? - Do domestic tax norms apply tax withholding on payments made to non-residents? - How many Fortune 500 corporations have minimal employees but declare substantial profits in the jurisdiction? You may refer to available comparative indexes, such as Tax Justice Network’s Corporate Tax Haven Index (CTHI).

Sheet anriWeights (hidden)
B2: W | C2: PC
A3: Size & Influence of Offshore Company Formation Business Sector | B3: 3 | C3: 0
A4: Advertising to Non-Residents | B4: 3 | C4: 0
A5: Political & Economic Stability | B5: 1 | C5: 0
A6: Strength of Rule of Law | B6: 1 | C6: 0
A7: Legal Framework for Asset Protection | B7: 2 | C7: 0
A8: Perceived Corruption Levels | B8: 1 | C8: 0
A9: Beneficial Ownership Transparency | B9: 3 | C9: 0
A10: Tax Attractiveness | B10: 3 | C10: 0

Sheet anriCalc (hidden)
B1: Raw Score | C1: Weight | D1: PC | E1: Weighted Score | F1: PC kick-in | G1: Final Score
A2: ANRI | E2: =(SUM(E3:E10)/SUM(C3:C10))*1.1 -> 0.8864705882 | F2: =MAX(F3:F10) -> 0 | G2: =MAX(E2:F2) -> 0.8864705882
A3: Size & Influence of Offshore Company Formation Business Sector | B3: =ANRI!D3 -> 0.9 | C3: =anriWeights!B3 -> 3 | D3: =anriWeights!C3 -> 0 | E3: =B3*C3 -> 2.7 | F3: =IF(D3=1,B3,0) -> 0
A4: Advertising to Non-Residents | B4: =ANRI!D4 -> 0.9 | C4: =anriWeights!B4 -> 3 | D4: =anriWeights!C4 -> 0 | E4: =B4*C4 -> 2.7 | F4: =IF(D4=1,B4,0) -> 0
A5: Political & Economic Stability | B5: =ANRI!D5 -> 0.7 | C5: =anriWeights!B5 -> 1 | D5: =anriWeights!C5 -> 0 | E5: 0.7 | F5: 0
A6: Strength of Rule of Law | B6: =ANRI!D6 -> 0.7 | C6: =anriWeights!B6 -> 1 | D6: =anriWeights!C6 -> 0 | E6: 0.7 | F6: 0
A7: Legal Framework for Asset Protection | B7: =ANRI!D7 -> 0.7 | C7: =anriWeights!B7 -> 2 | D7: =anriWeights!C7 -> 0 | E7: 1.4 | F7: 0
A8: Perceived Corruption Levels | B8: =ANRI!D8 -> 0.7 | C8: =anriWeights!B8 -> 1 | D8: =anriWeights!C8 -> 0 | E8: 0.7 | F8: 0
A9: Beneficial Ownership Transparency | B9: =ANRI!D9 -> 0.9 | C9: =anriWeights!B9 -> 3 | D9: =anriWeights!C9 -> 0 | E9: 2.7 | F9: 0
A10: Tax Attractiveness | B10: =ANRI!D10 -> 0.7 | C10: =anriWeights!B10 -> 3 | D10: =anriWeights!C10 -> 0 | E10: 2.1 | F10: 0

Sheet anriMenus (hidden)
A2: ANRI
A3: - | B3: - | C3: - | D3: -
A4: Very low | B4: Not at all | C4: Very weak | D4: Yes
A5: Low | B5: Yes, but limited | C5: Weak | D5: No
A6: Medium | B6: Yes | C6: Medium
A7: High | B7: Yes, prominently | C7: Strong/robust
A8: Very high | C8: Very strong/robust

Sheet Mitigation
A1: Strength of Mitigation Measures
A2: INTERMEDIATE VARIABLES | B2: INPUT VARIABLES | C2: GUIDANCE | D2: RATING | F2: JUSTIFICATION FOR RATING
A3: Quality of Regulation & Supervision of TCSPs | B3: Quality of Regulation & Supervision of TCSPs | C3: Assess the quality of AML regulation of TCSPs. Are TCSPs and other intermediaries involved in forming and administering legal entities (e.g. notaries) covered by AML regulations with CDD requirements and a duty to report suspicious transactions? Are TCSPs supervised - if yes, assess the quality of supervision. If TCSPs are not covered by AML regulations, select “does not exist”. | D3: =IF(E3=2,1,IF(E3=3,0.75,IF(E3=4,0.5,IF(E3=5,0.3,IF(E3=6,0.1,IF(E3=7,0,IF(E3=8,0,"no input"))))))) -> 0.3 | E3: 5
A4: Effectiveness of Enforcement of Sanctions/Fines | B4: Effectiveness of Enforcement of Sanctions/Fines | C4: Assess the effectiveness of enforcement of available sanctions/fines for non-compliance with disclosure requirements of basic and beneficial ownership information for legal entities in your jurisdiction, e.g. failure to disclose or update information or reporting inaccurate beneficial ownership information. Consider: - Are the fines/sanctions proportionate to the severity of the offense? Are there different levels of sanctions for administrative errors vs. deliberate concealment of information? - Are the fines/sanctions sufficiently dissuasive? Are they successful at incentivizing compliance with regulations? - Are there only monetary fines or administrative sanctions (such as suspension from the registry) or does a failure to report accurate information about beneficial owners carry criminal liability for the legal entity or individuals? - Are there adequate sanctions/fines for non-compliance that apply to the legal entity? - Is there liability for professional intermediaries (TCSPs, agents) for submitting inaccurate/outdated information? - Is there liability for individuals associated with the legal entity (directors, officers, partners, beneficial owners) to encourage compliance with the regulations? - In practice, are non-compliant legal entities suspended after a certain period? - How effectively are sanctions/fines enforced? | D4: =IF(E4=2,1,IF(E4=3,0.75,IF(E4=4,0.5,IF(E4=5,0.3,IF(E4=6,0.1,IF(E4=7,0,IF(E4=8,0,"no input"))))))) -> 0.3 | E4: 5
A5: Quality of Corporate Registry | B5: Comprehensiveness of coverage | C5: Are all legal entities that can be created under the laws of your country required to register with the corporate registry - or with another registry, e.g. a trust registry? If legal entities are exempted from registering, are the reasons for exemption well-justified? | D5: =IF(E5=2,0.9,IF(E5=3,0.7,IF(E5=4,0.5,IF(E5=5,0.2,"no input")))) -> 0.9 | E5: 2
B6: Level of accurate & up-to-date information | C6: Assess the level of accuracy and up-to-dateness of basic company information available in the corporate registry. Is information regularly updated or frequently inaccurate/outdated? This assessment should be based on practical experience, not on "on the books" updating requirements. | D6: =IF(E6=2,1,IF(E6=3,0.75,IF(E6=4,0.5,IF(E6=5,0.3,IF(E6=6,0.1,IF(E6=7,0,IF(E6=8,0,"no input"))))))) -> 0.75 | E6: 3
B7: Adequacy of resources | C7: Assess the level of adequacy of resources of the corporate registry - IT equipment, staffing, financial resources. Are resources sufficient for the registry to fulfill its mandate? | D7: =IF(E7=2,1,IF(E7=3,0.75,IF(E7=4,0.5,IF(E7=5,0.3,IF(E7=6,0.1,IF(E7=7,0,IF(E7=8,0,"no input"))))))) -> 0.5 | E7: 4
B8: Automatic Alerts | C8: Does the registry automatically alert legal entities when an update is required? Does it inform entities of possible penalties, including termination, if information is not updated? Does the registry automatically alert regulators when updated information is required but not submitted? | D8: =IF(E8=2,0.15,IF(E8=3,0.85,"no input")) -> 0.85 | E8: 3
B9: Online access | C9: Is basic information about legal entities in the corporate registry accessible online, free of charge? Examples of access restrictions include a nominal fee or a pre-registration requirement. | D9: =IF(E9=2,0.9,IF(E9=3,0.6,IF(E9=4,0.2,IF(E9=5,0,"no input")))) -> 0.9 | E9: 2
B10: Quality of data format and search options | C10: Assess the quality of the data format and available search options in the corporate registry. Is the information searchable by a variety of entries - by legal entity name, by name of director (or secretary, partner or other person associated with the entity - by first and last name, business address, registered agent? Is it possible to search for a combination of information (Boolean searches)? Is information in the registry held in a standardized format (e.g. dates, addresses, spellings of names)? A standardized data format facilitates exchange of information and cross-referencing information in the corporate registry with other government databases or other sources. | D10: =IF(E10=2,1,IF(E10=3,0.75,IF(E10=4,0.5,IF(E10=5,0.3,IF(E10=6,0.1,IF(E10=7,0,IF(E10=8,0,"no input"))))))) -> 0.5 | E10: 4
A11: Quality of Information obtained through CDD | B11: CDD by FIs | C11: Assess the overall quality of CDD processes applied to legal structures by FIs. Consider factors such as: - Are identity verification checks of officers, directors, beneficial owners and other persons associated with the legal structure performed? - What steps are taken to identify the beneficial owners of a legal structure as part of CDD? | D11: =IF(E11=2,1,IF(E11=3,0.75,IF(E11=4,0.5,IF(E11=5,0.3,IF(E11=6,0.1,IF(E11=7,0,IF(E11=8,0,"no input"))))))) -> 0.75 | E11: 3
B12: CDD by TCSPs | C12: Assess the overall quality of CDD processes applied to legal structures by TCSPs. Consider factors such as: - Are identity verification checks of officers, directors, beneficial owners and other persons associated with the legal structure performed? - What steps are taken to identify the beneficial owners of a legal structure as part of CDD? | D12: =IF(E12=2,1,IF(E12=3,0.75,IF(E12=4,0.5,IF(E12=5,0.3,IF(E12=6,0.1,IF(E12=7,0,IF(E12=8,0,"no input"))))))) -> 0.3 | E12: 5
B13: CDD by other “gatekeeper” professions | C13: Assess the overall quality of CDD processes applied to legal structures by other professional intermediaries in your jurisdiction (other than FIs and TCSPs). Focus on professional intermediaries that commonly perform the most important "gatekeeper" functions in your country, defined here as those professions that provide access to financial, administrative or other professional services that are required for - and can be abused - to move, conceal, or spend proceeds of crime. This may include real estate professionals, lawyers, notaries, accountants, arts dealers and other professions. | D13: =IF(E13=2,1,IF(E13=3,0.75,IF(E13=4,0.5,IF(E13=5,0.3,IF(E13=6,0.1,IF(E13=7,0,IF(E13=8,0,"no input"))))))) -> 0.3 | E13: 5
B14: AML/CFT risk awareness of TCSPs | C14: Assess the level of understanding and knowledge of AML/CFT risks related to legal entities among staff of TCSPs. Consider factors such as: - Level of understanding that the BO must always be a natural person - Level of understanding that a given legal structure can have more than one BO - Level of knowledge about most common techniques used to hide the BO - Level of knowledge about common ML typologies that involve abuse of legal structures | D14: =IF(E14=2,1,IF(E14=3,0.75,IF(E14=4,0.5,IF(E14=5,0.3,IF(E14=6,0.1,IF(E14=7,0,IF(E14=8,0,"no input"))))))) -> 0.1 | E14: 6
B15: Quality of risk-based enhanced CDD measures | C15: Assess the quality of risk-based enhanced CDD requirements for legal structures based on the level of risk (geography, sector, complexity of structure, purpose of entity)? Examples for higher-risk structures may include: - Legal entities operating or holding assets in sectors identified as high-risk for ML/TF in the NRA (e.g. natural resources, extractives licensing, luxury real estate, luxury goods, trade) - Legal entities with foreign ownership - Legal entities with PEPs in the ownership/control structure - Legal entities administered by TCSPs | D15: =IF(E15=2,0.9,IF(E15=3,0.6,IF(E15=4,0.2,IF(E15=5,0,"no input")))) -> 0.6 | E15: 3
A16: Accessibility of Beneficial Ownership Information | B16: Level of access by competent authorities | C16: Assess the level & quality of access to beneficial ownership information by LEAs and competent authorities. Can LEAs and competent authorities access beneficial ownership information on ALL domestic legal entities without significant delays or bureaucratic, technical, or financial barriers? Direct access = access is direct & immediate; no request necessary Easy access upon request = information is easily accessible upon request within 24-48 hrs Some access restrictions = there are some bureaucratic or technical barriers to accessing information; access is usually obtained only after 48 hrs Significant access restrictions = there are larger bureaucratic or technical barriers to accessing information; access is usually obtained only after 4-5 days Not accessible | D16: =IF(E16=2,0.9,IF(E16=3,0.7,IF(E16=4,0.5,IF(E16=5,0.2,IF(E16=6,0,"no input"))))) -> 0.9 | E16: 2
B17: Level of access by reporting entities | C17: Assess the level & quality of access to beneficial ownership information by reporting entities (incl. financial institutions). Can financial institutions (and other reporting entities) access beneficial ownership information on most domestic legal entities without significant bureaucratic, technical, or financial barriers? Please note that this indicator does not refer to BO information that financial institutions collect themselves as part of their own CDD - but it refers to accessibility of BO information that is collected on a routine basis at entity formation, by a government authority or by a TCSP. Direct access = access is direct & immediate; no request necessary Easy access upon request = information is easily accessible upon request within 24-48 hrs Some access restrictions = there are some bureaucratic or technical barriers to accessing information; access is usually obtained only after 48 hrs Significant access restrictions = there are larger bureaucratic or technical barriers to accessing information; access is usually obtained only after 4-5 days Not accessible | D17: =IF(E17=2,0.9,IF(E17=3,0.7,IF(E17=4,0.5,IF(E17=5,0.2,IF(E17=6,0,"no input"))))) -> 0 | E17: 6
B18: Level of public access | C18: Assess the level & quality of access to beneficial ownership information by others with a legitimate interest, including members of the public, journalists, civil society organizations. Jurisdiction can define those with a legitimate interest in access to BO information differently - it some jurisdictions it requires submitting an request that includes the reason + intended use of the information. Importantly, in many cases, there is a benefit to making BO information available to journalists and civil society organizations for the purpose of detecting illicit activities and finding errors in the information supplied by legal entities. Can others with a legitimate interest access beneficial ownership information without significant bureaucratic, technical, or financial barriers? | D18: =IF(E18=2,0.9,IF(E18=3,0.7,IF(E18=4,0.5,IF(E18=5,0.2,IF(E18=6,0,"no input"))))) -> 0 | E18: 6
B19: Quality of Data Format & Search Options | C19: Assess the quality of the data format and search options of BO information (if available). Is data on beneficial owners held in a standardized format (e.g. dates, addresses, spellings of names)? A standardized data format facilitates exchange of information and cross-referencing information in the corporate registry with other government databases or other sources. Is the information searchable by a variety of types of information? If beneficial ownership information is held in a registry combined with basic information about LEs: is information in the registry searchable by legal entity name, name of director/member/shareholder/company secretary - by first and last name, business address, registered agent? Is it possible to search for a combination of information (Boolean searches)? | D19: =IF(E19=2,1,IF(E19=3,0.75,IF(E19=4,0.5,IF(E19=5,0.3,IF(E19=6,0.1,IF(E19=7,0,IF(E19=8,0,"no input"))))))) -> 0.75 | E19: 3
A20: Existence & Effectiveness of BO Verification Mechanisms | B20: Quality of Routine Verification | C20: Do routine mechanisms to verify that beneficial ownership information is accurate exist, and if so, how effective are they? A basic obligation to verify would require a review of documents submitted by the person wishing to establish a legal person to verify their identity and the means and mechanisms through which they exercise beneficial ownership or control, e.g. (1) passport or other identity document, (2) company charter, copies of share registries, partnership agreement, etc. (It does not require enhanced verification checks of a more proactive/investigative nature using independent sources.) | D20: =IF(E20=2,0.9,IF(E20=3,0.6,IF(E20=4,0.2,IF(E20=5,0,"no input")))) -> 0.6 | E20: 3
B21: Cross-checks with other data sources | C21: Are cross-checks of BO information supplied by legal entities with other data sources conducted for verification purposes? Cross-checks can be performed manually or automatically, or a combination of automatic red-flagging followed by manual checks. Other data sources depend on availability of other sources in your jurisdiction and in foreign jurisdictions, as well as on the country’s mechanism to collect BO information. They can include government-held databases (e.g. tax databases, land registry, national register), commercial databases with company information, Google searches, open source databases with company information (e.g. OpenCorporates), internal databases maintained by FIs and DNFBPs. | D21: =IF(E21=2,0.9,IF(E21=3,0.6,IF(E21=4,0.2,IF(E21=5,0,"no input")))) -> 0 | E21: 5
B22: Red-flagging for enhanced checks | C22: Do mechamisms for red-flagging of potential risk factors that trigger enhanced checks of the supplied information exist, and if so, how effective are they? These mechanisms can be automatic or manual, or a combination of automatic red-flagging followed by manual checks. | D22: =IF(E22=2,0.9,IF(E22=3,0.6,IF(E22=4,0.2,IF(E22=5,0,"no input")))) -> 0.6 | E22: 3
B23: Availability & Quality of other Information Sources | C23: Assess availability & quality of other information sources in your country that can assist with identification of beneficial owners. Consider, for example: - Central registry of real estate ownership / land registry - Central registry of bank accounts | D23: =IF(E23=2,1,IF(E23=3,0.75,IF(E23=4,0.5,IF(E23=5,0.3,IF(E23=6,0.1,IF(E23=7,0,IF(E23=8,0,"no input"))))))) -> 0.3 | E23: 5
B24: Discrepancy reporting mechanism | C24: Does a mechanism for reporting discrepancies and errors in collected BO information exist, and if so, how effective is it? Are legitimate queries addressed and adjudicated in a timely and fair manner? See glossary for a definition of discrepancy reporting mechanisms. | D24: =IF(E24=2,0.9,IF(E24=3,0.6,IF(E24=4,0.2,IF(E24=5,0,"no input")))) -> 0 | E24: 5
A25: Quality of Controls against Opaque Structures | B25: Existence and Quality of BO Transparency Measures for Foreign Structures | C25: Has your country implemented any specific transparency measures for foreign-registered legal structures that operate or own assets or shares in your jurisdiction? If so, how effective are they in terms of providing access to BO information? For example: - Local registration requirements with a registry or with a regulated professional intermediary that requires disclosure of beneficial owners? - Agreements with other jurisdictions for expedited exchange of BO information (outside of MLA process)? Measures may be risk-based and apply only to certain sectors or business purposes, e.g. bidding on public tenders or obtaining extractives licenses. | D25: =IF(E25=2,0.9,IF(E25=3,0.6,IF(E25=4,0.2,IF(E25=5,0,"no input")))) -> 0 | E25: 5
B26: Quality of Bearer Share Controls | C26: Assess the quality of controls against use of bearer shares to hide the identity of the beneficial owner. Have measures been taken to ban or dematerialize bearer shares (e.g. through a requirement for conversion into ordinary shares)? Have measures been taken to immobilize bearer shares (e.g. requirement for regulated custodian to hold bearer shares)? Is yes, is the registration of the owner of the bearer share by a regulated custodian or other party conclusive to determine ownership (rather than the person who physically presents the instrument)? | D26: =IF(E26=2,0.9,IF(E26=3,0.6,IF(E26=4,0.2,IF(E26=5,0,"0")))) -> 0.9 | E26: 2
B27: Level of transparency on PEPs as BOs | C27: Assess the level of transparency of PEPs as BOs in your country. Consider measures such as: - Does your country's income & asset disclosure framework for government officials include beneficial ownership of legal entities (domestic or foreign legal entities)? - Is there any requirement to record & disclose PEP status for officers, directors, members, shareholders, and beneficial owners in the corporate registry and/or BO registry (if available)? | D27: 0.2 | E27: 4
B28: Quality of controls against deceptive entity names | C28: Are there any restrictions on names of legal entities to prevent deception, e.g. through imitating unconnected established companies? | D28: 0.9 | E28: 2
B29: Quality of Nominee Regulation | C29: Assess the quality and effectiveness of regulation of nominees in your country. Consider: - Are there licensing or registration requirements for the provision of nominee services? (FATF INR24 15b) - Are there dissuasive sanctions or fines for the nominee if the legal entity is used to facilitate criminal conduct? - Is the status of the nominee (as a nominee) and the identity of the nominator who issues instructions to the nominee recorded in the corporate registry or other relevant registry, or to a government authority? | D29: 0 | E29: 5
B30: Quality of BO Identification for Nominee Arrangements | C30: Assess the quality of BO identification in the context of nominee arrangements. Are nominee directors and nominee shareholders required to disclose the identity of the natural person(s) on whose behalf they are acting (their "nominator") as part of BO identification? If so, how effectively is this requirement implemented? This applies to BO identification as part of CDD by reporting entities and/or submitting information to any BO registry. (See FATF INR24 15a) | D30: 0.2 | E30: 4
B31: Level of BO transparency for structures owned/controlled by trusts | C31: Assess quality of BO identification for LEs with trusts in ownership/control structures. Are trusts in the ownership/control structure of a legal entity required to disclose the identities of the settlor, trustee, protector (if any), beneficiaries as part of BO identification for CDD by reporting entities and/or to relevant registry (if available)? This applies even if trusts do not exist under the laws of your country. Trusts in the ownership/control structure of a legal entity may be registered in a foreign jurisdiction or in the same jurisdiction as the entity it owns/controls. | D31: 0.9 | E31: 2
B32: Level of BO Transparency for structures with corporate directors | C32: Assess quality of BO identification for legal persons with corporate directors in your jurisdiction. In practice, is beneficial ownership information on legal persons with corporate directors available to authorities, or are corporate directors misused as a way to conceal true beneficial ownership? | D32: 0.9 | E32: 2
A33: Effectiveness of International Information Exchange | B33: International exchange of AML information | C33: Assess the effectiveness of international exchange of AML information on legal structures, including BO information. Consider: - Existence of expedited informal channels for sharing of BO information (pre-MLA), e.g. via Egmont network or via bilateral agreements between countries - Exchange of BO information via formal MLA - Time of responses to foreign requests related to structures formed in your jurisdiction | D33: =IF(E33=2,1,IF(E33=3,0.75,IF(E33=4,0.5,IF(E33=5,0.3,IF(E33=6,0.1,IF(E33=7,0,IF(E33=8,0,"no input"))))))) -> 0.3 | E33: 5
B34: International exchange of tax information | C34: Assess the effectiveness of international exchange of tax information on legal structures, including BO information as part of exchange of tax information. Consider: - Does your jurisdiction participate in automatic exchange of information (AEOI) under CRS or FATCA? - Existence of channels for direct exchange of tax information between your jurisdiction's tax authority and other countries' tax authorities? - Time of responses to foreign requests related to tax information on structures formed in your jurisdiction | D34: =IF(E34=2,1,IF(E34=3,0.75,IF(E34=4,0.5,IF(E34=5,0.3,IF(E34=6,0.1,IF(E34=7,0,IF(E34=8,0,"no input"))))))) -> 0.75 | E34: 3
A35: Effectiveness of domestic interagency information exchange | B35: Effectiveness of domestic interagency information exchange | C35: Assess the effectiveness of domestic interagency exchange of information about legal structures. Consider: - Exchange of information between tax authority and LEAs and other national authorities in the context of investigations involving legal structures? - Exchange of information between corporate registry and other available government databases, such as land registry, real estate registry, national register | D35: =IF(E35=2,1,IF(E35=3,0.75,IF(E35=4,0.5,IF(E35=5,0.3,IF(E35=6,0.1,IF(E35=7,0,IF(E35=8,0,"no input"))))))) -> 0.5 | E35: 4

Sheet Nat Vulnerability Map
Q2: =Calculation!B19 -> 0.9
L3: =Calculation!B7 -> 0.3
Q6: =Calculation!B20 -> 0.75
L9: =Calculation!B8 -> 0.3
Q10: =Calculation!B22 -> 0.5 | V10: =Calculation!E50 -> 0.9
P14: =Calculation!G49 -> 0.7 | V14: =Calculation!E51 -> 0.5
L15: =Calculation!B9 -> 0.75
Q18: =Calculation!B23 -> 0.85 | V18: =Calculation!E53 -> 1.5
P22: =Calculation!G52 -> 0.48 | V22: =Calculation!E54 -> 0.6
L25: =Calculation!B10 -> 0.1
Q26: =Calculation!B26 -> 0.1 | V26: =Calculation!B55 -> 0.3
Q30: =Calculation!B27 -> 0.6
Q34: =Calculation!B29 -> 0.9
Q38: =Calculation!B30 -> 0
L39: =Calculation!B11 -> 0.425
Q42: =Calculation!B31 -> 0
F43: =anriCalc!G2 -> 0.8864705882
Q46: =Calculation!B32 -> 0.75
B48: =Calculation!G1 -> 0.7824390497
P50: =Calculation!B27 -> 0.6 | V50: =Calculation!B57 -> 0
F53: =Calculation!G6 -> 0.3695767196
L54: =Calculation!B12 -> 0.225 | Q54: =Calculation!B31 -> 0 | V54: =Calculation!B58 -> 0.6
P58: =Calculation!B36 -> 0 | V58: =Calculation!B59 -> 0.3
P63: =Calculation!G60 -> 0.06666666667 | V63: =Calculation!E61 -> 0
Q67: =Calculation!B39 -> 0 | V67: =Calculation!E62 -> 0.2
L69: =Calculation!B13 -> 0.437037037
Q71: =Calculation!B40 -> 0.9
Q75: =Calculation!B41 -> 0.2
Q79: =Calculation!B42 -> 0.9
V82: =Calculation!B64 -> 0.9
P83: =Calculation!G63 -> 0.9
L86: =Calculation!B14 -> 0.45 | V86: =Calculation!B65 -> 0.9
Q87: =Calculation!B45 -> 0.3
Q91: =Calculation!B46 -> 0.75
L92: =Calculation!B15 -> 0.5

Sheet Calculation (hidden)
A1: NATIONAL VULNERABILITY | E1: =(SUM(E2:E3)/SUM(C2:C3)) -> 0.7824390497 | F1: =MAX(F2:F3) -> 0 | G1: =MAX(E1:F1) -> 0.7824390497
A2: NATIONAL COMBATING ABILITY | B2: =G6 -> 0.3695767196 | C2: 2 | D2: =Weights!C2 -> 0 | E2: =C2*((1-B2)+0.1) -> 1.460846561 | F2: =IF(D2=1,((1-B2)+0.1),0) -> 0
A3: ANRI SCORE | B3: =anriCalc!G2 -> 0.8864705882 | C3: =Weights!B3 -> 1 | D3: =Weights!C3 -> 0 | E3: =C3*B3 -> 0.8864705882 | F3: =IF(D3=1,B3,0) -> 0
A5: LEVEL 1 | B5: Inputs | C5: Weights | D5: Pre-conditions | E5: Weighted Score | F5: PC Kick-in | G5: Output Score
A6: NATIONAL COMBATING ABILITY | E6: =(SUM(E9:E15)/SUM(C9:C15)) -> 0.3695767196 | F6: =MIN(F7:F15) -> 99 | G6: =MIN(E6:F6) -> 0.3695767196
A7: Quality of Regulation & Supervision of TCSPs | B7: =Mitigation!D3 -> 0.3 | C7: =Weights!B7 -> 2 | D7: =Weights!C7 -> 0 | E7: =B7*C7 -> 0.6 | F7: =IF(D7=1,B7,99) -> 99
A8: Effectiveness of Enforcement of Sanctions/Fines | B8: =Mitigation!D4 -> 0.3 | C8: =Weights!B8 -> 3 | D8: =Weights!C8 -> 0 | E8: =B8*C8 -> 0.9 | F8: =IF(D8=1,B8,99) -> 99
A9: Quality of Corporate Registry | B9: =G18 -> 0.75 | C9: =Weights!B9 -> 1 | D9: =Weights!C9 -> 0 | E9: =B9*C9 -> 0.75 | F9: 99
A10: Quality of Information obtained through CDD | B10: =G24 -> 0.1 | C10: =Weights!B10 -> 2 | D10: =Weights!C10 -> 0 | E10: =B10*C10 -> 0.2 | F10: 99
A11: Accessibility of BO Information | B11: =G28 -> 0.425 | C11: =Weights!B11 -> 3 | D11: =Weights!C11 -> 0 | E11: =B11*C11 -> 1.275 | F11: 99
A12: Existence & Effectiveness of Verification Mechanisms | B12: =G33 -> 0.225 | C12: =Weights!B12 -> 3 | D12: =Weights!C12 -> 0 | E12: 0.675 | F12: 99
A13: Quality of Controls against Opaque Structures | B13: =G37 -> 0.437037037 | C13: =Weights!B13 -> 2 | D13: =Weights!C13 -> 0 | E13: =B13*C13 -> 0.8740740741 | F13: 99
A14: Effectiveness of International Information Exchange | B14: =G44 -> 0.45 | C14: =Weights!B14 -> 2 | D14: =Weights!C14 -> 0 | E14: 0.9 | F14: 99
A15: Effectiveness of domestic interagency information exchange | B15: =Mitigation!D35 -> 0.5 | C15: =Weights!B15 -> 1 | D15: =Weights!C15 -> 0 | E15: 0.5 | F15: 99
A17: LEVEL 2 | B17: Inputs | C17: Weights | D17: Pre-conditions | E17: Weighted Score | F17: PC Kick-in | G17: Output Score
A18: Quality of Corporate Registry | E18: =(SUM(E19:E23)/SUM(C19:C23)) -> 0.75625 | F18: =MIN(F19:F23) -> 0.75 | G18: =MIN(E18:F18) -> 0.75
A19: Comprehensiveness of coverage | B19: =Mitigation!D5 -> 0.9 | C19: =Weights!B19 -> 2 | D19: =Weights!C19 -> 1 | E19: =B19*C19 -> 1.8 | F19: =IF(D19=1,B19,99) -> 0.9
A20: Level of accurate & up-to-date information | B20: =Mitigation!D6 -> 0.75 | C20: =Weights!B20 -> 2 | D20: =Weights!C20 -> 1 | E20: 1.5 | F20: =IF(D20=1,B20,99) -> 0.75
A21: Online access & user friendliness | B21: =G49 -> 0.7 | C21: =Weights!B21 -> 2 | D21: =Weights!C21 -> 0 | E21: =B21*C21 -> 1.4 | F21: =IF(D21=1,B21,99) -> 99
A22: Adequacy of resources | B22: =Mitigation!D7 -> 0.5 | C22: =Weights!B22 -> 1 | D22: =Weights!C22 -> 0 | E22: 0.5 | F22: 99
A23: Search/download alerts | B23: =Mitigation!D8 -> 0.85 | C23: =Weights!B23 -> 1 | D23: =Weights!C23 -> 0 | E23: 0.85 | F23: 99
A24: Quality of Information obtained through CDD | E24: =(SUM(E25:E27)/SUM(C25:C27)) -> 0.445 | F24: =MIN(F25:F27) -> 0.1 | G24: =MIN(E24:F24) -> 0.1
A25: Quality of CDD processes | B25: =G52 -> 0.48 | C25: =Weights!B25 -> 1 | D25: =Weights!C25 -> 0 | E25: =B25*C25 -> 0.48 | F25: =IF(D25=1,B25,99) -> 99
A26: AML/CFT risk awareness of staff of reporting entities | B26: =Mitigation!D14 -> 0.1 | C26: =Weights!B26 -> 1 | D26: =Weights!C26 -> 1 | E26: 0.1 | F26: =IF(D26=1,B26,99) -> 0.1
A27: Availability & effectiveness of risk-based enhanced CDD measures | B27: =Mitigation!D15 -> 0.6 | C27: =Weights!B27 -> 2 | D27: =Weights!C27 -> 1 | E27: =B27*C27 -> 1.2 | F27: =IF(D27=1,B27,99) -> 0.6
A28: Accessibility of BO Information | E28: =(SUM(E29:E32)/SUM(C29:C32)) -> 0.425 | F28: =MIN(F29:F32) -> 0.9 | G28: =MIN(E28:F28) -> 0.425
A29: Level of access by competent authorities | B29: =Mitigation!D16 -> 0.9 | C29: =Weights!B29 -> 2 | D29: =Weights!C29 -> 1 | E29: =B29*C29 -> 1.8 | F29: =IF(D29=1,B29,99) -> 0.9
A30: Level of access by reporting entities | B30: =Mitigation!D17 -> 0 | C30: =Weights!B30 -> 2 | D30: =Weights!C30 -> 0 | E30: 0 | F30: =IF(D30=1,B30,99) -> 99
A31: Level of access by others with legitimate interest | B31: =Mitigation!D18 -> 0 | C31: =Weights!B31 -> 1 | D31: =Weights!C31 -> 0 | E31: =B31*C31 -> 0 | F31: =IF(D31=1,B31,99) -> 99
A32: Quality of Data Format & Search Options | B32: =Mitigation!D19 -> 0.75 | C32: =Weights!B32 -> 1 | D32: =Weights!C32 -> 0 | E32: 0.75 | F32: 99
A33: Existence & Effectiveness of Verification Mechanisms | E33: =(SUM(E34:E36)/SUM(C34:C36)) -> 0.2625 | F33: =MIN(F34:F36) -> 0.225 | G33: =MIN(E33:F33) -> 0.225
A34: Quality of Routine verification | B34: =Mitigation!D20 -> 0.6 | C34: =Weights!B34 -> 1 | D34: =Weights!C34 -> 0 | E34: =B34*C34 -> 0.6 | F34: =IF(D34=1,B34,99) -> 99
A35: Quality of Risk-based Enhanced Verification | B35: =G56 -> 0.225 | C35: =Weights!B35 -> 2 | D35: =Weights!C35 -> 1 | E35: 0.45 | F35: 0.225
A36: Discrepancy reporting mechanism | B36: =Mitigation!D24 -> 0 | C36: =Weights!B36 -> 1 | D36: =Weights!C36 -> 0 | E36: =B36*C36 -> 0 | F36: 99
A37: Quality of Controls against Anonymous Structures | E37: =(SUM(E38:E43)/SUM(C38:C43)) -> 0.437037037 | F37: =MIN(F38:F43) -> 99 | G37: =MIN(E37:F37) -> 0.437037037
A38: Quality of Nominee Controls | B38: =G60 -> 0.06666666667 | C38: =Weights!B38 -> 2 | D38: =Weights!C38 -> 0 | E38: =B38*C38 -> 0.1333333333 | F38: =IF(D38=1,B38,99) -> 99
A39: Existence and Quality of BO Transparency Measures for Foreign LSs | B39: =Mitigation!D25 -> 0 | C39: =Weights!B39 -> 2 | D39: =Weights!C39 -> 0 | E39: 0 | F39: =IF(D39=1,B39,99) -> 99
A40: Quality of Bearer Share Controls | B40: =Mitigation!D26 -> 0.9 | C40: =IF(Mitigation!$E26=6,0,Weights!B40) -> 1 | D40: =IF(Mitigation!$E26=6,0,Weights!C40) -> 0 | E40: =B40*C40 -> 0.9 | F40: =IF(D40=1,B40,99) -> 99
A41: Level of transparency on PEPs as BOs | B41: =Mitigation!D27 -> 0.2 | C41: =Weights!B41 -> 1 | D41: =Weights!C41 -> 0 | E41: 0.2 | F41: 99
A42: Quality of controls against deceptive LS names | B42: =Mitigation!D28 -> 0.9 | C42: =Weights!B42 -> 1 | D42: =Weights!C42 -> 0 | E42: 0.9 | F42: 99
A43: Quality of BO Identification for LSs owned/controlled by trusts & LSs with corporate directors | B43: =G63 -> 0.9 | C43: =Weights!B43 -> 2 | D43: =Weights!C43 -> 0 | E43: 1.8 | F43: 99
A44: Effectiveness of International Information Exchange | E44: =(SUM(E45:E46)/SUM(C45:C46)) -> 0.45 | F44: =MIN(F45:F46) -> 99 | G44: =MIN(E44:F44) -> 0.45
A45: International exchange of AML information | B45: =Mitigation!D33 -> 0.3 | C45: =Weights!B45 -> 2 | D45: =Weights!C45 -> 0 | E45: =B45*C45 -> 0.6 | F45: =IF(D45=1,B45,99) -> 99
A46: International exchange of tax information | B46: =Mitigation!D34 -> 0.75 | C46: =Weights!B46 -> 1 | D46: =Weights!C46 -> 0 | E46: 0.75 | F46: =IF(D46=1,B46,99) -> 99
A48: LEVEL 3 | B48: Inputs | C48: Weights | D48: Pre-conditions | E48: Weighted Score | F48: PC Kick-in | G48: Output Score
A49: Online access & user friendliness | E49: =(SUM(E50:E51)/SUM(C50:C51)) -> 0.7 | F49: =MIN(F50:F51) -> 99 | G49: =MIN(E49:F49) -> 0.7
A50: Online access | B50: =Mitigation!D9 -> 0.9 | C50: =Weights!B50 -> 1 | D50: =Weights!C50 -> 0 | E50: =B50*C50 -> 0.9 | F50: =IF(D50=1,B50,99) -> 99
A51: User friendliness | B51: =Mitigation!D10 -> 0.5 | C51: =Weights!B51 -> 1 | D51: =Weights!C51 -> 0 | E51: 0.5 | F51: =IF(D51=1,B51,99) -> 99
A52: Quality of CDD processes | E52: =(SUM(E53:E55)/SUM(C53:C55)) -> 0.48 | F52: =MIN(F53:F55) -> 99 | G52: =MIN(E52:F52) -> 0.48
A53: CDD by FIs | B53: =Mitigation!D11 -> 0.75 | C53: =Weights!B53 -> 2 | D53: =Weights!C53 -> 0 | E53: =B53*C53 -> 1.5 | F53: =IF(D53=1,B53,99) -> 99
A54: CDD by TCSPs | B54: =Mitigation!D12 -> 0.3 | C54: =Weights!B54 -> 2 | D54: =Weights!C54 -> 0 | E54: 0.6 | F54: =IF(D54=1,B54,99) -> 99
A55: CDD by other professional intermediaries | B55: =Mitigation!D13 -> 0.3 | C55: =Weights!B55 -> 1 | D55: =Weights!C55 -> 0 | E55: 0.3 | F55: 99
A56: Quality of Risk-based Enhanced Verification | E56: =(SUM(E57:E59)/SUM(C57:C59)) -> 0.225 | F56: =MIN(F57:F59) -> 99 | G56: =MIN(E56:F56) -> 0.225
A57: Cross-checks with other data sources | B57: =Mitigation!D21 -> 0 | C57: =Weights!B57 -> 2 | D57: =Weights!C57 -> 0 | E57: =B57*C57 -> 0 | F57: =IF(D57=1,B57,99) -> 99
A58: Red-flagging for enhanced checks | B58: =Mitigation!D22 -> 0.6 | C58: =Weights!B58 -> 1 | D58: =Weights!C58 -> 0 | E58: =B58*C58 -> 0.6 | F58: =IF(D58=1,B58,99) -> 99
A59: Availability & Quality of other Information Sources | B59: =Mitigation!D23 -> 0.3 | C59: =Weights!B59 -> 1 | D59: =Weights!C59 -> 0 | E59: =B59*C59 -> 0.3 | F59: =IF(D59=1,B59,99) -> 99
A60: Quality of Nominee Controls | E60: =(SUM(E61:E62)/SUM(C61:C62)) -> 0.06666666667 | F60: =MIN(F61:F62) -> 99 | G60: =MIN(E60:F60) -> 0.06666666667
A61: Quality of Nominee Regulation | B61: =Mitigation!D29 -> 0 | C61: =IF(Mitigation!$E29=6,0,Weights!B61) -> 2 | D61: =IF(Mitigation!$E29=6,0,Weights!C61) -> 0 | E61: =B61*C61 -> 0 | F61: =IF(D61=1,B61,99) -> 99
A62: Quality of BO Identification for Nominee Arrangements | B62: =Mitigation!D30 -> 0.2 | C62: =IF(Mitigation!$E30=6,0,Weights!B62) -> 1 | D62: =IF(Mitigation!$E30=6,0,Weights!C62) -> 0 | E62: 0.2 | F62: =IF(D62=1,B62,99) -> 99
A63: Quality of BO Identification for LSs owned/controlled by trusts & LSs with corporate directors | E63: =(SUM(E64:E65)/SUM(C64:C65)) -> 0.9 | F63: =MIN(F64:F65) -> 99 | G63: =MIN(E63:F63) -> 0.9
A64: Level of BO Transparency for LSs owned/controlled by trusts | B64: =Mitigation!D31 -> 0.9 | C64: =Weights!B64 -> 1 | D64: =Weights!C64 -> 0 | E64: =B64*C64 -> 0.9 | F64: =IF(D64=1,B64,99) -> 99
A65: Level of BO Transparency for LSs with Corporate Directors | B65: =Mitigation!D32 -> 0.9 | C65: =Weights!B65 -> 1 | D65: =Weights!C65 -> 0 | E65: 0.9 | F65: =IF(D65=1,B65,99) -> 99

Sheet Weights (hidden)
A1: NATIONAL VULNERABILITY | B1: Weights | C1: Pre-conditions
A2: NATIONAL COMBATING ABILITY | B2: 2 | C2: 0
A3: ANRI SCORE | B3: 1 | C3: 0
A5: Level 1
A6: VULNERABILITY | B6: Weights | C6: Pre-conditions
A7: Quality of Regulation & Supervision of TCSPs | B7: 2 | C7: 0
A8: Effectiveness of Enforcement of Sanctions/Fines | B8: 3 | C8: 0
A9: Quality of Corporate Registry | B9: 1 | C9: 0
A10: Quality of Information obtained through CDD | B10: 2 | C10: 0
A11: Accessibility of BO Information | B11: 3 | C11: 0
A12: Existence & Effectiveness of Verification Mechanisms | B12: 3 | C12: 0
A13: Quality of Controls against Opaque Structures | B13: 2 | C13: 0
A14: Effectiveness of International Information Exchange | B14: 2 | C14: 0
A15: Effectiveness of domestic interagency information exchange | B15: 1 | C15: 0
A17: Level 2
A18: Quality of Corporate Registry | B18: Weights | C18: Pre-conditions
A19: Comprehensiveness of coverage | B19: 2 | C19: 1
A20: Level of accurate & up-to-date information | B20: 2 | C20: 1
A21: Online access & user friendliness | B21: 2 | C21: 0
A22: Adequacy of resources | B22: 1 | C22: 0
A23: Search/download alerts | B23: 1 | C23: 0
A24: Quality of Information obtained through CDD
A25: Quality of CDD processes | B25: 1 | C25: 0
A26: AML/CFT risk awareness of staff of reporting entities | B26: 1 | C26: 1
A27: Availability & effectiveness of risk-based enhanced CDD measures | B27: 2 | C27: 1
A28: Accessibility of BO Information
A29: Level of access by competent authorities | B29: 2 | C29: 1
A30: Level of access by reporting entities | B30: 2 | C30: 0
A31: Level of access by others with legitimate interest | B31: 1 | C31: 0
A32: Quality of Data Format & Search Options | B32: 1 | C32: 0
A33: Existence & Effectiveness of Verification Mechanisms
A34: Quality of Routine verification | B34: 1 | C34: 0
A35: Quality of Risk-based Enhanced Verification | B35: 2 | C35: 1
A36: Discrepancy reporting mechanism | B36: 1 | C36: 0
A37: Quality of Controls against Anonymous Structures
A38: Quality of Nominee Controls | B38: 2 | C38: 0
A39: Existence and Quality of BO Transparency Measures for Foreign LSs | B39: 2 | C39: 0
A40: Quality of Bearer Share Controls | B40: 1 | C40: 0
A41: Level of transparency on PEPs as BOs | B41: 1 | C41: 0
A42: Quality of controls against deceptive LS names | B42: 1 | C42: 0
A43: Quality of BO Identification for LSs owned/controlled by trusts & LSs with corporate directors | B43: 2 | C43: 0
A44: Effectiveness of International Information Exchange
A45: International exchange of AML information | B45: 2 | C45: 0
A46: International exchange of tax information | B46: 1 | C46: 0
A48: Level 3
A49: Online access & user friendliness | B49: Weights | C49: Pre-conditions
A50: Online access | B50: 1 | C50: 0
A51: Quality of data format and search options | B51: 1 | C51: 0
A52: Quality of CDD processes
A53: CDD by FIs | B53: 2 | C53: 0
A54: CDD by TCSPs | B54: 2 | C54: 0
A55: CDD by other "gatekeeper" professions | B55: 1 | C55: 0
A56: Quality of Risk-based Enhanced Verification
A57: Cross-checks with other data sources | B57: 2 | C57: 0
A58: Red-flagging for enhanced checks | B58: 1 | C58: 0
A59: Availability & Quality of other Information Sources | B59: 1 | C59: 0
A60: Quality of Nominee Controls
A61: Quality of Nominee Regulation | B61: 2 | C61: 0
A62: Quality of BO Identification for Nominee Arrangements | B62: 1 | C62: 0
A63: Quality of BO Identification for LSs owned/controlled by trusts & LSs with corporate directors
A64: Level of BO Transparency for structures owned/controlled by trusts | B64: 1 | C64: 0
A65: Level of BO Transparency for legal persons with corporate directors | B65: 1 | C65: 0

Sheet Menus (hidden)
A1: 1 | B1: 2 | C1: 3 | D1: 4 | E1: 5 | F1: 6 | G1: 8
A2: - | B2: - | C2: - | D2: - | E2: - | F2: - | G2: -
A3: Fully comprehensive | B3: Excellent | C3: Exists, and free of charge | D3: Does not exist | E3: Exists, and highly effective | F3: Direct access | G3: Exists, and highly effective | O3: Answer Options
A4: Close to comprehensive | B4: High | C4: Exists, but small access restrictions | D4: Exists | E4: Exists, and mixed effectiveness | F4: Easy access upon request | G4: Exists, and mixed effectiveness | N4: 1
A5: Limited exemptions | B5: Medium | C5: Exists, but significant access restrictions | E5: Exists, but low effectiveness | F5: Some access restrictions | G5: Exists, but low effectiveness
A6: Many exemptions | B6: Low | C6: Does not exist | E6: Does not exist | F6: Significant access restrictions | G6: Does not exist
B7: Very low | F7: Not accessible | G7: Does not apply
B8: Does not exist
N9: 2
N17: 3 | O17: Exists, and free of charge
O18: Exists, but small access restrictions
O19: Exists, but significant access restrictions
O20: Does not exist
N22: 2 | O22: High
O23: Medium high
O24: Medium
O25: Low
N27: 2 | O27: High
O28: Medium high
O29: Medium
O30: Low
N32: 4 | O32: Exists
O33: Does not exist
N37: 2 | O37: Excellent
O38: High
O39: Medium High
O40: Medium
O41: Low
O42: Very Low
N45: 2 | O45: Excellent
O46: High
O47: Medium High
O48: Medium
O49: Low
O50: Very Low
N53: 2 | O53: Excellent
O54: High
O55: Medium High
O56: Medium
O57: Low
O58: Very Low
N60: 2 | O60: Excellent
O61: High
O62: Medium High
O63: Medium
O64: Low
O65: Very Low
N68: 5 | O68: Exists, and highly effective
O69: Exists, and mixed effectiveness
O70: Exists, but low effectiveness
O71: Does not exist
N74: 6 | O74: Easy, direct access
O75: Easy access upon request
O76: Limited access restrictions
O77: Severe access restrictions
O78: Not accessible
N81: 6 | O81: Easy, direct access
O82: Easy access upon request
O83: Limited access restrictions
O84: Severe access restrictions
O85: Not accessible
N88: 6 | O88: Easy, direct access
O89: Easy access upon request
O90: Limited access restrictions
O91: Severe access restrictions
O92: Not accessible
N95: 2 | O95: Excellent
O96: High
O97: Medium High
O98: Medium
O99: Low
O100: Very Low
N103: 5 | O103: Exists, and highly effective
O104: Exists, and mixed effectiveness
O105: Exists, but low effectiveness
O106: Does not exist
N109: 5 | O109: Exists, and highly effective
O110: Exists, and mixed effectiveness
O111: Exists, but low effectiveness
O112: Does not exist
N115: 5 | O115: Exists, and highly effective
O116: Exists, and mixed effectiveness
O117: Exists, but low effectiveness
O118: Does not exist
N121: 2 | O121: Excellent
O122: High
O123: Medium High
O124: Medium
O125: Low
O126: Does not exist
N129: 2 | O129: Excellent
O130: High
O131: Medium High
O132: Medium
O133: Low
O134: Very Low
N137: 2 | O137: Excellent
O138: High
O139: Medium High
O140: Medium
O141: Low
O142: Very Low
N145: 2 | O145: Excellent
O146: High
O147: Medium High
O148: Medium
O149: Low
O150: Very Low
N153: 2 | O153: Excellent
O154: High
O155: Medium High
O156: Medium
O157: Low
O158: Very Low
N161: 5 | O161: Exists, and highly effective
O162: Exists, and mixed effectiveness
O163: Exists, but low effectiveness
O164: Does not exist
N169: 8 | O169: Exists, and highly effective
O170: Exists, and mixed effectiveness
O171: Exists, but low effectiveness
O172: Does not exist
O173: Does not apply
N176: 8 | O176: Exists, and highly effective
O177: Exists, and mixed effectiveness
O178: Exists, but low effectiveness
O179: Does not exist
O180: Does not apply
N183: 8 | O183: Exists, and highly effective
O184: Exists, and mixed effectiveness
O185: Exists, but low effectiveness
O186: Does not exist
O187: Does not apply
N190: 5 | O190: Exists, and highly effective
O191: Exists, and mixed effectiveness
O192: Exists, but low effectiveness
O193: Does not exist
N196: 5 | O196: Exists, and highly effective
O197: Exists, and mixed effectiveness
O198: Exists, but low effectiveness
O199: Does not exist
N202: 5 | O202: Exists, and highly effective
O203: Exists, and mixed effectiveness
O204: Exists, but low effectiveness
O205: Does not exist
N208: 5 | O208: Exists, and highly effective
O209: Exists, and mixed effectiveness
O210: Exists, but low effectiveness
O211: Does not exist
N215: 2 | O215: Excellent
O216: High
O217: Medium High
O218: Medium
O219: Low
O220: Very Low
O221: Does not apply
